fUSD/lending_fUSD_20240601
["ID","MTS","AMOUNT","RATE_DAILY","PERIOD"]
[328348017,1717205438211,-226.50038929,0.000201,2]
[328348018,1717205438221,-199.84820848,0.000332,2]
[328348019,1717205438232,-25.23574323,0.000333,9]
[328348020,1717205438380,-4050.31477294,0.000333,9]
[328348021,1717205438390,-19704.1877457,0.000333,5]
[328348022,1717205438401,-2349.40480559,0.000333,5]
[328348023,1717205438454,-1539.6968488,0.000333,5]
[328348029,1717205441093,-205.4010479,0.00033299,11]
[328348030,1717205441102,-30896.95587747,0.000333,5]
[328348032,1717205443151,-168.0,0.000333,5]
[328348034,1717205443160,-1910.076,0.000333,5]
[328348069,1717205446288,-278.88240566,0.00018288,10]
[328348070,1717205446297,-81.26396652,0.00033299,11]
[328348071,1717205446632,-75.91634194,0.00033299,11]
[328348072,1717205446641,-156.040436,0.00033299,4]
[328348073,1717205446650,-107.89624985,0.000333,5]
[328348085,1717205692563,153.23526497,0.00034823,120]
[328348089,1717205774839,150.12164568,0.00034823,120]
[328348090,1717205799498,39363.33938129,0.00013,2]
[328348094,1717205832679,156.72617688,0.00034823,30]
[328348095,1717205835468,1569.88248709,0.00034823,120]
[328348099,1717206011606,-803.50130827,0.00018288,2]
[328348100,1717206011630,-9.49869173,0.000189,2]
[328348104,1717206072126,1000.0,0.00034,120]
[328348105,1717206090825,1033.680446,0.00034,120]
[328348106,1717206096947,1000.0,0.00034,120]
[328348111,1717206230494,1037.0,0.00034823,30]
[328348112,1717206241284,1037.0,0.00034823,30]
[328348113,1717206251818,1037.0,0.00034823,30]
[328348114,1717206262505,1037.0,0.00034823,30]
[328348115,1717206273110,1037.0,0.00034823,30]
[328348116,1717206283789,1037.0,0.00034823,30]
[328348117,1717206294494,1037.0,0.00034823,30]
[328348119,1717206305183,1037.0,0.00034823,30]
[328348122,1717206315867,1037.0,0.00034823,30]
[328348123,1717206326566,1037.0,0.00034823,30]
[328348124,1717206336146,-145.3524633,0.000189,2]
[328348125,1717206336166,-729.27402728,0.00019,2]
[328348126,1717206336185,-300.0,0.00019725,2]
[328348127,1717206336205,-226.50038929,0.000201,2]
[328348128,1717206336228,-64.5679487,0.00020267,2]
[328348129,1717206337913,1037.0,0.00034823,30]
[328348130,1717206348647,1037.0,0.00034823,30]
[328348131,1717206359359,1037.0,0.00034823,30]
[328348132,1717206369951,1037.0,0.00034823,30]
[328348133,1717206380855,1037.0,0.00034823,30]
[328348134,1717206391518,1037.0,0.00034823,30]
[328348135,1717206402169,1037.0,0.00034823,30]
[328348136,1717206412864,1037.0,0.00034823,30]
[328348137,1717206423624,1037.0,0.00034823,30]
[328348141,1717206434252,1098.49476925,0.00034823,30]
[328348160,1717206632423,-154.85115503,0.00020167,2]
[328348161,1717206632433,-12170.90432485,0.00020267,2]
[328348162,1717206632444,-2211.6319081,0.00020267,2]
[328348163,1717206632588,-363.2425254,0.00020267,2]
[328348164,1717206632601,-946.60826906,0.00020267,2]
[328348165,1717206632612,-2140.72487849,0.00020267,2]
[328348166,1717206632624,-1958.17991589,0.00020267,2]
[328348167,1717206632635,-1325.14524,0.00020267,2]
[328348168,1717206632646,-289.3455407,0.00020267,2]
[328348169,1717206632756,-278.60878409,0.00020267,2]
[328348170,1717206632768,-1115.8023317,0.00020267,2]
[328348171,1717206632779,-280.85203042,0.00020267,2]
[328348172,1717206632791,-603.38328281,0.00020267,2]
[328348173,1717206632802,-3499.02376926,0.00020267,2]
[328348176,1717206639330,-2762.81609821,0.00020267,2]
[328348179,1717206639342,-3280.6014,0.00020267,2]
[328348180,1717206639493,-4207.32988912,0.00020267,2]
[328348181,1717206639654,-27291.24222376,0.00020267,2]
[328348183,1717206641302,-1048.582763,0.00020267,2]
[328348184,1717206641314,-17260.3083729,0.00020267,2]
[328348185,1717206642309,-15463.73813844,0.00020267,2]
[328348186,1717206642319,-1923.0,0.000221,2]
[328348187,1717206642328,-154.85115503,0.000236,2]
[328348188,1717206642337,-150.0,0.00024356,2]
[328348189,1717206642346,-153.01,0.00024384,2]
[328348190,1717206642356,-159.65,0.00024384,2]
[328348191,1717206642365,-1050.0,0.00025,2]
[328348192,1717206642375,-462.83,0.00025601,2]
[328348193,1717206642384,-3465.39351341,0.00026933,2]
[328348194,1717206642394,-1147.17035889,0.00026933,2]
[328348195,1717206642403,-179.29,0.0002696,2]
[328348196,1717206642413,-250.0,0.00026979,2]
[328348197,1717206642422,-1100.0,0.00027,2]
[328348198,1717206642432,-107117.32057256,0.00027,2]
[328348199,1717206642442,-154.85115503,0.00027033,2]
[328348200,1717206642451,-262.41,0.00027233,2]
[328348201,1717206642460,-151.48,0.00027306,2]
[328348202,1717206642469,-240.51,0.00027336,2]
[328348203,1717206642478,-2000.0,0.00027342,2]
[328348204,1717206642487,-3465.3935134,0.00027629,2]
[328348205,1717206642496,-1147.17035888,0.00027629,2]
[328348206,1717206642505,-462.83,0.00027864,2]
[328348207,1717206642514,-1000.0,0.00028305,2]
[328348208,1717206642523,-224.81734899,0.00028325,2]
[328348209,1717206642532,-3465.3935134,0.00028326,2]
[328348210,1717206642541,-1147.17035888,0.00028326,2]
[328348211,1717206642554,-662.6,0.00028441,2]
[328348212,1717206642564,-1150.0,0.00029,2]
[328348213,1717206642573,-3465.3935134,0.00029022,2]
[328348214,1717206642582,-1147.17035888,0.00029022,2]
[328348215,1717206642592,-4173.8461298,0.0002913,10]
[328348216,1717206642601,-3465.3935134,0.00029718,2]
[328348217,1717206642610,-1147.17035888,0.00029718,2]
[328348218,1717206642619,-180.0,0.00029788,2]
[328348219,1717206642629,-462.83,0.00030128,2]
[328348220,1717206642637,-4800.3443,0.00030397,2]
[328348221,1717206642646,-3965.6101,0.00030397,2]
[328348222,1717206642655,-1005.36517889,0.00030415,10]
[328348223,1717206642667,-1050.51565051,0.00030415,10]
[328348229,1717206643535,-1409.512684,0.00030415,10]
[328348230,1717206643545,-1147.17035888,0.00030415,10]
[328348231,1717206643555,-4865.26494532,0.00030497,2]
[328348232,1717206643566,-363.75575473,0.00030497,2]
[328348233,1717206643577,-974.31579601,0.00030497,2]
[328348234,1717206643942,-532.39266797,0.00030497,2]
[328348235,1717206643954,-549.80271798,0.00030497,2]
[328348236,1717206644200,-9417.0797708,0.00030497,2]
[328348237,1717206644212,-6447.70274719,0.00030497,2]
[328348238,1717206644221,-20053.6140737,0.00030497,2]
[328348239,1717206644243,-1752.86053826,0.00030497,2]
[328348240,1717206644255,-3511.27900672,0.00030497,2]
[328348241,1717206646452,-644.70431179,0.00030497,2]
[328348243,1717206646634,-1214.8874183,0.00030497,2]
[328348244,1717206646786,-259.47540624,0.00030497,2]
[328348249,1717206944180,690.0,0.00034823,30]
[328348250,1717207163235,151.0,0.0003034,30]
[328348258,1717207500519,5000.0,0.00034842,120]
[328348260,1717207550170,-1489.30824149,0.00017148,2]
[328348261,1717207554495,415.0,0.00034842,30]
[328348262,1717207640341,-919.562747,0.00017147,2]
[328348275,1717207831699,-1389.36467461,0.00017146,2]
[328348276,1717207831708,-264.18011018,0.00017147,2]
[328348277,1717207831720,-385.81988982,0.00017147,2]
[328348278,1717207831729,-238.0466,0.00017151,2]
[328348279,1717207831738,-155.9587604,0.00018595,2]
[328348280,1717207831748,-160.0,0.00018695,2]
[328348281,1717207831757,-1442.53283066,0.00019197,2]
[328348282,1717207831766,-543.84577881,0.00019197,2]
[328348283,1717207831776,-1328.49,0.00019198,2]
[328348284,1717207831785,-41780.10482115,0.00019199,2]
[328348285,1717207831794,-3887.55227938,0.000192,2]
[328348286,1717207831803,-1506.15434113,0.0002,2]
[328348287,1717207831813,-6251.81374662,0.0002,2]
[328348288,1717207831822,-226.50038929,0.000201,2]
[328348289,1717207831831,-151.0,0.00020267,2]
[328348290,1717207831840,-151.0,0.00020267,2]
[328348291,1717207831850,-151.0,0.00020267,2]
[328348292,1717207831858,-151.0,0.00020267,2]
[328348293,1717207831867,-151.0,0.00020267,2]
[328348294,1717207831876,-151.0,0.00020267,2]
[328348295,1717207831886,-192.0,0.00020267,2]
[328348296,1717207831895,-558.66,0.00020445,2]
[328348297,1717207831904,-2000.0,0.00021918,2]
[328348298,1717207831914,-9016.19622245,0.00022,2]
[328348299,1717207831923,-1731.0,0.000221,2]
[328348300,1717207831932,-218.79,0.00022166,2]
[328348322,1717207832103,-250.0,0.000223,2]
[328348324,1717207832113,-829.87,0.00022628,2]
[328348326,1717207832122,-558.66,0.00022709,2]
[328348328,1717207832133,-988.7544882,0.00022755,2]
[328348330,1717207832142,-250.0,0.0002387,2]
[328348331,1717207832152,-473.33684833,0.00024,2]
[328348332,1717207832161,-433.9343719,0.00024,2]
[328348333,1717207832171,-180.0,0.0002423,2]
[328348334,1717207832181,-152.07,0.00024384,2]
[328348335,1717207832190,-158.25,0.00024384,2]
[328348336,1717207832199,-4879.50636791,0.000249,2]
[328348337,1717207832215,-572.60933285,0.000249,2]
[328348339,1717207837622,-201.15128962,0.00024658,7]
[328348340,1717207837632,-61.49882847,0.000249,2]
[328348355,1717207837956,-527.3426415,0.000249,2]
[328348395,1717207841553,-643.65507974,0.000249,2]
[328348396,1717207841565,-788.19214587,0.000249,2]
[328348403,1717207845684,-6847.43776346,0.00022,2]
[328348404,1717207845694,-96.42403871,0.000249,2]
[328348405,1717207845704,-347.45013191,0.000249,2]
[328348406,1717207845714,-435.3339297,0.00024927,2]
[328348407,1717207845723,-22534.00711915,0.00024928,2]
[328348408,1717207845732,-558.66,0.00024973,2]
[328348409,1717207845741,-151.65,0.0002499,2]
[328348410,1717207845750,-500.0,0.00024999,2]
[328348411,1717207845759,-500.0,0.00024999,2]
[328348412,1717207845768,-500.0,0.00024999,2]
[328348413,1717207845777,-397.8195326,0.00024999,2]
[328348414,1717207845787,-500.0,0.00024999,2]
[328348415,1717207845796,-322.2585662,0.00024999,2]
[328348416,1717207845805,-358.57016308,0.00024999,2]
[328348417,1717207845814,-505.20189883,0.00024999,2]
[328348418,1717207845823,-155.0,0.00025,2]
[328348419,1717207845833,-35402.47122418,0.00025,2]
[328348420,1717207846052,-340.32554508,0.00025,2]
[328348430,1717207882406,3109.21360495,0.00030458,30]
[328348431,1717207899985,4519.61183101,0.00033,120]
[328348434,1717207969483,2000.0,0.00034842,30]
[328348435,1717207970204,1875.8,0.00034842,30]
[328348438,1717208296355,759.46,0.00033178,120]
[328348439,1717208451995,2088.0,0.00034847,30]
[328348440,1717208480758,201.25881091,0.00034847,30]
[328348441,1717208489825,3363.09284065,0.00034847,33]
[328348442,1717208556663,1508.6,0.00034847,31]
[328348444,1717208730123,-155.0,0.00017046,2]
[328348445,1717208730142,-161.18636921,0.00017047,2]
[328348446,1717208730162,-1155.18436064,0.00017148,2]
[328348447,1717208763873,1517.43,0.00034847,30]
[328348460,1717209031829,-1898.91513286,0.00017046,2]
[328348461,1717209031838,-1803.30077465,0.00017046,2]
[328348462,1717209031848,-300.0,0.00017047,2]
[328348463,1717209031857,-42.50710418,0.00017198,2]
[328348469,1717209032011,-108.24289582,0.00017198,2]
[328348470,1717209032020,-156.69423858,0.00017252,2]
[328348471,1717209032030,-1798.00499087,0.00017253,2]
[328348472,1717209032039,-19312.01348389,0.00017254,2]
[328348473,1717209032048,-499.99,0.00017808,2]
[328348474,1717209032058,-411.16095041,0.00019,2]
[328348475,1717209032067,-3887.55227938,0.000192,2]
[328348476,1717209032076,-668.67,0.00019589,2]
[328348477,1717209032086,-552.52049699,0.0002,2]
[328348478,1717209032095,-752.03196948,0.0002,2]
[328348479,1717209032104,-697.95925185,0.0002,2]
[328348480,1717209032113,-226.50038929,0.000201,2]
[328348481,1717209032123,-250.0,0.00021189,2]
[328348482,1717209032133,-663.9,0.00021388,2]
[328348483,1717209032142,-160.31,0.00021449,2]
[328348484,1717209032151,-200.0,0.00021498,2]
[328348485,1717209032160,-279.49,0.00021586,2]
[328348486,1717209032169,-160.31,0.00021673,2]
[328348487,1717209032179,-664.64,0.00021701,2]
[328348488,1717209032188,-668.67,0.00021853,2]
[328348489,1717209032197,-250.0,0.0002186,2]
[328348490,1717209032206,-160.31,0.00021896,2]
[328348491,1717209032215,-250.0,0.00021918,2]
[328348492,1717209032224,-1803.9067731,0.00021918,2]
[328348493,1717209032243,-196.0932269,0.00021918,2]
[328348494,1717209032252,-2242.13216405,0.00021941,2]
[328348495,1717209032262,-21657.86783595,0.00021941,2]
[328348496,1717209032271,-759.46,0.00021945,2]
[328348497,1717209032281,-625.0,0.000221,2]
[328348498,1717209032290,-160.31,0.0002212,2]
[328348499,1717209032299,-160.31,0.00022343,2]
[328348500,1717209032309,-155.66659876,0.00022498,2]
[328348501,1717209032318,-160.31,0.00022567,2]
[328348502,1717209032327,-279.49,0.00022665,2]
[328348503,1717209032337,-336.1,0.00022751,2]
[328348504,1717209032346,-279.49,0.00023744,2]
[328348505,1717209032356,-663.9,0.00024062,2]
[328348506,1717209032365,-668.67,0.00024117,2]
[328348507,1717209032374,-180.0,0.0002423,2]
[328348508,1717209032384,-168.02,0.00024384,2]
[328348509,1717209032394,-664.64,0.00024441,2]
[328348510,1717209032403,-19413.14441205,0.000245,2]
[328348512,1717209032413,-300.0,0.000247,9]
[328348513,1717209032422,-600.0,0.000248,9]
[328348514,1717209032432,-9293.40266551,0.000248,2]
[328348515,1717209032441,-279.49,0.00024824,2]
[328348516,1717209032450,-175.34500595,0.000249,2]
[328348517,1717209032459,-223.46118815,0.000249,2]
[328348518,1717209032469,-71096.00544898,0.000249,2]
[328348519,1717209032478,-176.83927421,0.000249,2]
[328348520,1717209032488,-15290.28435386,0.000249,2]
[328348521,1717209032497,-213.48643428,0.000249,2]
[328348522,1717209032518,-900.0,0.000249,9]
[328348523,1717209032527,-335.62813746,0.000249,2]
[328348524,1717209032537,-151.57,0.0002499,2]
[328348525,1717209032546,-151.57,0.0002499,2]
[328348526,1717209032556,-151.57,0.0002499,2]
[328348527,1717209032565,-432.95318817,0.00024998,2]
[328348528,1717209032574,-476.40340047,0.00024998,2]
[328348529,1717209032584,-795.24603511,0.00024998,2]
[328348530,1717209032593,-313.77052622,0.00024998,2]
[328348531,1717209032603,-234.29014304,0.00024998,2]
[328348532,1717209032612,-156.64383801,0.00024998,2]
[328348533,1717209032621,-379.66951786,0.00024998,2]
[328348534,1717209032631,-433.74027885,0.00024998,2]
[328348535,1717209032642,-689.67980413,0.00024998,2]
[328348536,1717209032652,-493.75500671,0.00024998,2]
[328348537,1717209032661,-172.3186001,0.00024998,2]
[328348538,1717209032671,-155.53330894,0.00024998,2]
[328348539,1717209032680,-347.93317453,0.00024999,2]
[328348540,1717209032689,-1278.31312815,0.00024999,2]
[328348541,1717209032699,-150.0,0.00024999,2]
[328348542,1717209032709,-300.0,0.00024999,2]
[328348543,1717209032719,-450.0,0.00024999,2]
[328348544,1717209032728,-600.0,0.00024999,2]
[328348545,1717209032738,-750.0,0.00024999,2]
[328348546,1717209032748,-900.8301525,0.00024999,2]
[328348547,1717209032757,-217519.02409546,0.00025,2]
[328348548,1717209032772,-13591.73681483,0.00025,2]
[328348549,1717209037785,-10208.64443999,0.00025,2]
[328348550,1717209037996,-191226.64236885,0.00025,2]
[328348551,1717209038009,-3195.21607603,0.00025,2]
[328348552,1717209038190,-16712.44953595,0.00025,2]
[328348553,1717209038202,-6940.378292,0.00025,2]
[328348554,1717209038213,-1876.900965,0.00025,2]
[328348555,1717209038225,-440.8317,0.00025,2]
[328348556,1717209038372,-129961.0,0.00025,2]
[328348795,1717209040892,-865.08748073,0.00025,2]
[328348798,1717209040908,-3325.0,0.00025,2]
[328348800,1717209040920,-1960.0,0.00025,2]
[328348804,1717209040931,-596.12154197,0.00025,2]
[328348806,1717209040943,-1006.632,0.00025,2]
[328348822,1717209041092,-298.31412405,0.00025,2]
[328348881,1717209042248,-1125.64973902,0.00025,2]
[328348882,1717209042260,-1133.07,0.00025,2]
[328348883,1717209042272,-16331.95982867,0.00025,2]
[328348884,1717209042283,-29263.47991683,0.00025,2]
[328348885,1717209042295,-774.1338722,0.00025,2]
[328348887,1717209042912,-616247.59762027,0.00025,2]
[328348888,1717209043121,-2021.94861734,0.00025,2]
[328348889,1717209043133,-410.37724548,0.00025,2]
[328348890,1717209043145,-612.2292305,0.00025,2]
[328348891,1717209043156,-281.07575007,0.00025,2]
[328348892,1717209043329,-302513.41075482,0.00025,2]
[328348893,1717209043340,-1050.0,0.00025,2]
[328348894,1717209043349,-155.0,0.00025,2]
[328348895,1717209043359,-284.75086541,0.00025,2]
[328348896,1717209043368,-155.0,0.00025,2]
[328348897,1717209043379,-928.69933237,0.00025,2]
[328348898,1717209043389,-578.25172564,0.00025,14]
[328348899,1717209043399,-20000.0,0.00025,3]
[328348900,1717209043409,-151.0,0.00025,7]
[328348901,1717209043419,-157.876483,0.00025,7]
[328348902,1717209043429,-151.0,0.00025,7]
[328348903,1717209043439,-155.559565,0.00025,7]
[328348904,1717209043449,-151.0,0.00025,7]
[328348905,1717209043459,-271.739224,0.00025,7]
[328348906,1717209043470,-271.739224,0.00025,7]
[328348907,1717209043479,-735.08424,0.00025,2]
[328348908,1717209043489,-463.415945,0.00025,7]
[328348909,1717209043499,-463.415945,0.00025,7]
[328348910,1717209043508,-4966.55,0.0002501,2]
[328348911,1717209043519,-336.1,0.00025595,2]
[328348912,1717209043528,-5110.85773474,0.00025655,2]
[328348913,1717209043540,-920.45915,0.00025655,2]
[328348914,1717209043553,-268.45463421,0.00025655,2]
[328348915,1717209644730,-1803.30077465,0.00016715,2]
[328348916,1717209644752,-7529.62685189,0.00016715,2]
[328348917,1717209644787,-530.45664041,0.00016716,2]
[328348918,1717209644810,-1898.91513286,0.00016716,2]
[328348919,1717209644832,-855.39109037,0.00016717,2]
[328348920,1717209644855,-165.29677628,0.00016742,2]
[328348921,1717209644876,-3490.49945104,0.00016847,2]
[328348922,1717209644899,-300.0,0.00016947,2]
[328348923,1717209644921,-648.1305256,0.00017224,2]
[328348924,1717209644943,-19859.04337561,0.00017225,2]
[328348925,1717209682014,604.45,0.00033151,120]
[328348926,1717209797024,1100.0,0.00032,120]
[328348928,1717209955130,-1275.27223497,0.00017223,2]
[328348929,1717209955152,-191.00024941,0.00017223,2]
[328348951,1717210232058,-155.32461979,0.00017123,2]
[328348952,1717210232067,-300.0,0.00017222,2]
[328348953,1717210232077,-243.17246511,0.00017223,2]
[328348954,1717210232086,-234.99498188,0.00017223,2]
[328348958,1717210232097,-338.36,0.00017223,2]
[328348969,1717210232318,-343.125,0.00017223,2]
[328348970,1717210232331,-124.77457434,0.00017223,2]
[328348971,1717210232340,-548.18151117,0.00017223,2]
[328348972,1717210232350,-1094.98722777,0.00017223,2]
[328348973,1717210232363,-1547.59,0.00017223,2]
[328348974,1717210232375,-3505.4815812,0.00017223,2]
[328348975,1717210232386,-12315.76944001,0.00017223,2]
[328349013,1717210238017,-1235.34387603,0.00017223,2]
[328349015,1717210238027,-307.41279556,0.00017224,2]
[328349016,1717210238037,-2725.03344548,0.00017224,2]
[328349017,1717210238046,-789.3781235,0.00017224,2]
[328349018,1717210238056,-45340.82532771,0.00017225,2]
[328349020,1717210238067,-26744.32435902,0.00017225,2]
[328349021,1717210238347,-4112.310635,0.00017225,2]
[328349022,1717210238359,-8703.74876222,0.00017225,2]
[328349023,1717210238367,-150.0,0.00017233,2]
[328349024,1717210238377,-1846.92643578,0.0001726,2]
[328349025,1717210238388,-401.99492962,0.0001726,2]
[328349026,1717210238399,-2395.23304635,0.0001726,2]
[328349027,1717210238410,-1001.76083561,0.0001726,2]
[328349028,1717210238421,-1449.23475264,0.0001726,2]
[328349029,1717210238430,-5033.93181151,0.0001726,2]
[328349030,1717210238441,-15129.88418849,0.0001726,2]
[328349031,1717210238451,-150.99,0.00017534,2]
[328349032,1717210238460,-1658.45,0.00017808,2]
[328349033,1717210238469,-9734.22,0.00017808,2]
[328349034,1717210238479,-480.24,0.00017808,2]
[328349035,1717210238488,-3887.55227938,0.000192,2]
[328349036,1717210238498,-299.99,0.000192,4]
[328349037,1717210238507,-3056.85963309,0.000192,2]
[328349041,1717210241045,-0.15097852,0.000192,2]
[328349042,1717210241057,-686.32,0.000192,2]
[328349043,1717210241231,-93.92938839,0.000192,2]
[328349044,1717210241242,-499.99,0.000192,2]
[328349045,1717210241254,-661.82,0.00019832,2]
[328349046,1717210241263,-226.50038929,0.000201,2]
[328349047,1717210241273,-500.0,0.00021221,2]
[328349048,1717210241283,-2771.79,0.00021496,2]
[328349049,1717210241292,-10030.89454857,0.00021506,2]
[328349050,1717210241305,-1375.96952884,0.00021506,2]
[328349051,1717210241316,-1860.7000015,0.00021506,2]
[328349052,1717210242191,-8366.5000005,0.00021506,2]
[328349054,1717210242203,-331.83999997,0.00021506,2]
[328349056,1717210242214,-1480.47328902,0.00021506,2]
[328349057,1717210242226,-453.6226316,0.00021506,2]
[328349058,1717210242234,-112.79236841,0.00021538,2]
[328349059,1717210242246,-87.20763159,0.00021538,2]
[328349060,1717210242255,-987.62,0.00021574,2]
[328349061,1717210242266,-204.71,0.00021604,2]
[328349062,1717210242275,-279.49,0.0002166,2]
[328349063,1717210242285,-131.92736841,0.00021668,2]
[328349064,1717210242296,-40.10263159,0.00021668,2]
[328349065,1717210242306,-204.71,0.00021712,2]
[328349066,1717210242315,-250.0,0.00021716,2]
[328349067,1717210242325,-250.0,0.00021751,2]
[328349068,1717210242334,-725.97160057,0.00021782,2]
[328349074,1717210243326,-199.10839943,0.00021782,2]
[328349075,1717210243336,-638.66160057,0.00021782,2]
[328349077,1717210243581,-719.82839943,0.00021782,2]
[328349078,1717210243592,-485.44,0.00021801,2]
[328349079,1717210243603,-155.32461979,0.00021818,2]
[328349080,1717210243614,-150.0,0.00021856,2]
[328349081,1717210243623,-153.05119746,0.00021861,2]
[328349094,1717210246475,-332.38880254,0.00021861,2]
[328349095,1717210246485,-449.35280671,0.00021876,2]
[328349096,1717210246643,-500.0,0.00021876,2]
[328349116,1717210413347,234.060111,0.00034,92]
[328349119,1717210694208,-200.0,0.0003485,120]
[328349123,1717210846953,503.7,0.00033151,120]
[328349137,1717211142337,344.0,0.0003486,30]
[328349138,1717211153149,-173.71708241,0.00015358,2]
[328349139,1717211153170,-1313.29822667,0.00017258,2]
[328349144,1717211232109,-161.78,0.00016689,2]
[328349145,1717211232131,-757.78975402,0.00017258,2]
[328349148,1717211429302,959.28446867,0.0003486,120]
[328349151,1717211432275,-858.16390953,0.00017258,2]
[328349152,1717211432456,-2645.1191714,0.00017258,2]
[328349153,1717211432466,-155.0,0.00017258,2]
[328349154,1717211432476,-150.0,0.00017258,2]
[328349155,1717211432486,-150.0,0.00017258,2]
[328349156,1717211432495,-2105.96274213,0.00017259,2]
[328349157,1717211432504,-845.25,0.00019148,2]
[328349158,1717211432514,-565.24091159,0.00019198,2]
[328349159,1717211432524,-1898.32825842,0.00019198,2]
[328349160,1717211432533,-2294.72769491,0.00019198,2]
[328349161,1717211432542,-155.25253813,0.00019198,2]
[328349162,1717211432551,-454.91,0.00019198,2]
[328349163,1717211432560,-1489.30824149,0.00019198,2]
[328349164,1717211432570,-919.562747,0.00019198,2]
[328349165,1717211432579,-1802.7073459,0.00019199,2]
[328349166,1717211432589,-791.94,0.00019199,2]
[328349167,1717211432598,-1049.73848792,0.000192,2]
[328349168,1717211432607,-18764.75597631,0.000192,2]
[328349169,1717211432617,-3887.55227938,0.000192,2]
[328349171,1717211432627,-499.99,0.000192,2]
[328349172,1717211432637,-150.99,0.000192,2]
[328349174,1717211432647,-488.15,0.000192,2]
[328349177,1717211432656,-150.99,0.000192,2]
[328349178,1717211432665,-155.0,0.0002,2]
[328349181,1717211432675,-363.63677021,0.0002,2]
[328349182,1717211432684,-363.63677021,0.0002,2]
[328349183,1717211432694,-363.63677021,0.0002,2]
[328349184,1717211432703,-363.63677021,0.0002,2]
[328349185,1717211432712,-363.63677021,0.0002,2]
[328349186,1717211432722,-363.63677021,0.0002,2]
[328349187,1717211432732,-226.50038929,0.000201,2]
[328349188,1717211432742,-189.87,0.00020465,2]
[328349189,1717211432753,-1025.15,0.00020762,2]
[328349190,1717211432762,-280.33,0.00020861,2]
[328349191,1717211432771,-250.0,0.00020861,2]
[328349192,1717211432782,-166.74,0.00020872,2]
[328349193,1717211432792,-23900.0,0.00020964,2]
[328349194,1717211432803,-200.0,0.00020971,2]
[328349195,1717211432813,-262.85,0.00021016,2]
[328349196,1717211432822,-6095.88,0.00021023,2]
[328349197,1717211432832,-1835.15,0.00021044,2]
[328349198,1717211432845,-3814.78,0.00021052,2]
[328349199,1717211432855,-810.13,0.00021053,2]
[328349200,1717211432867,-200.0,0.00021061,2]
[328349201,1717211432876,-529.76,0.00021061,2]
[328349202,1717211432886,-782.44,0.00021062,2]
[328349203,1717211432896,-150.0,0.00021067,2]
[328349204,1717211432907,-202.248185,0.00021096,2]
[328349205,1717211432916,-6918.77,0.00021129,2]
[328349206,1717211432927,-2751.0,0.00021148,2]
[328349207,1717211432938,-250.0,0.00021216,2]
[328349208,1717211432948,-343.39,0.00021268,2]
[328349209,1717211432958,-3636.95,0.00021326,2]
[328349210,1717211432968,-1000.0,0.00021406,2]
[328349211,1717211432979,-845.25,0.00021412,2]
[328349212,1717211432991,-4366.15,0.00021416,2]
[328349213,1717211433001,-1000.0,0.00021465,2]
[328349214,1717211433010,-1000.0,0.00021524,2]
[328349215,1717211433019,-1000.0,0.00021582,2]
[328349216,1717211433028,-152.14,0.00021587,2]
[328349217,1717211433038,-152.14,0.00021593,2]
[328349218,1717211433047,-152.14,0.000216,2]
[328349219,1717211433056,-152.14,0.00021606,2]
[328349220,1717211433065,-152.14,0.00021613,2]
[328349221,1717211433075,-800.0,0.00021616,2]
[328349222,1717211433084,-800.0,0.00021616,2]
[328349223,1717211433093,-152.14,0.00021619,2]
[328349224,1717211433103,-152.14,0.00021625,2]
[328349225,1717211433112,-152.14,0.00021632,2]
[328349226,1717211433122,-152.14,0.00021638,2]
[328349227,1717211433131,-1000.0,0.00021641,2]